fUST/lending_fUST_20240322
["ID","MTS","AMOUNT","RATE_DAILY","PERIOD"]
[320057690,1711121438957,-36062.26025553,0.00027297,2]
[320057691,1711121438969,-2163.27407868,0.00027297,2]
[320057692,1711121438980,-7127.669808,0.00027297,2]
[320057837,1711121446912,-500.0,0.00023315,2]
[320057838,1711121446922,-645.82621554,0.00023315,2]
[320057839,1711121446932,-500.0,0.00023315,2]
[320057840,1711121446942,-500.0,0.00023315,2]
[320057841,1711121446951,-158.33174714,0.00027296,2]
[320057842,1711121446961,-155.05116689,0.00027296,2]
[320057843,1711121446970,-21183.30606316,0.00027297,2]
[320057844,1711121446980,-309.92590365,0.00027395,2]
[320057845,1711121446989,-970.59345097,0.00027395,2]
[320057846,1711121446999,-257.54414226,0.00027395,90]
[320057847,1711121447009,-165.97839737,0.00027395,2]
[320057848,1711121447018,-205.13492374,0.00027395,2]
[320057849,1711121447028,-155.52958619,0.00027395,2]
[320057850,1711121447037,-180.36529286,0.00027395,2]
[320057851,1711121447047,-535.81137078,0.00027395,2]
[320057852,1711121447056,-155.12391835,0.00027395,2]
[320057853,1711121447066,-429.682053,0.00027395,2]
[320057854,1711121447076,-1742.381481,0.00027395,2]
[320057855,1711121447085,-930.05833365,0.00027395,2]
[320057856,1711121447094,-1573.92732714,0.00027395,2]
[320057857,1711121447104,-231.66683887,0.00027395,2]
[320057858,1711121447113,-322.86949289,0.00027395,2]
[320057859,1711121447122,-558.6632468,0.00027395,2]
[320057860,1711121447131,-276.46903258,0.00027396,2]
[320057861,1711121447141,-831.40042573,0.00027396,2]
[320057862,1711121447156,-285.04802275,0.00027396,2]
[320057863,1711121447166,-370.46797038,0.00027396,2]
[320057864,1711121447175,-1295.50775744,0.00027396,2]
[320057865,1711121447184,-1902.17878961,0.00027396,2]
[320057866,1711121447194,-155.71980603,0.00027396,2]
[320057867,1711121447203,-18826.74199082,0.00027397,3]
[320057868,1711121447212,-500.0,0.00027397,2]
[320057869,1711121447222,-500.0,0.00027397,2]
[320057870,1711121447231,-550.0,0.00027397,2]
[320057871,1711121447241,-500.0,0.00027397,2]
[320057872,1711121447250,-500.0,0.00027397,2]
[320057873,1711121447259,-500.0,0.00027397,2]
[320057874,1711121447270,-1289.26,0.00027397,2]
[320057875,1711121447281,-500.0,0.00027397,2]
[320057876,1711121447291,-500.0,0.00027397,2]
[320057877,1711121447301,-500.0,0.00027397,2]
[320057878,1711121447310,-500.0,0.00027397,2]
[320057879,1711121447320,-500.0,0.00027397,2]
[320057880,1711121447330,-500.0,0.00027397,2]
[320057881,1711121447340,-679.6,0.00027397,2]
[320057882,1711121447352,-500.0,0.00027397,2]
[320057883,1711121447364,-500.0,0.00027397,2]
[320057884,1711121447374,-500.0,0.00027397,2]
[320057885,1711121447384,-500.0,0.00027397,2]
[320057886,1711121447398,-500.0,0.00027397,2]
[320057887,1711121447408,-1000.0,0.00027397,2]
[320057888,1711121447418,-500.0,0.00027397,2]
[320057889,1711121447428,-500.0,0.00027397,2]
[320057890,1711121447438,-500.0,0.00027397,2]
[320057891,1711121447449,-500.0,0.00027397,2]
[320057892,1711121447459,-505.2617893,0.00027397,2]
[320057893,1711121447469,-500.0,0.00027397,2]
[320057894,1711121447479,-500.0,0.00027397,2]
[320057895,1711121447490,-500.0,0.00027397,2]
[320057896,1711121447499,-500.0,0.00027397,2]
[320057897,1711121447509,-299.65835555,0.00027397,2]
[320057898,1711121447519,-500.0,0.00027397,2]
[320057899,1711121447529,-500.0,0.00027397,2]
[320057900,1711121447538,-500.0,0.00027397,2]
[320057901,1711121447548,-500.0,0.00027397,2]
[320057902,1711121447558,-500.0,0.00027397,2]
[320057903,1711121447568,-500.0,0.00027397,2]
[320057904,1711121447577,-500.0,0.00027397,2]
[320057905,1711121447586,-1374.75,0.00027397,2]
[320057906,1711121447596,-246.18312366,0.00027397,2]
[320057907,1711121447605,-500.0,0.00027397,2]
[320057908,1711121447615,-500.0,0.00027397,2]
[320057909,1711121447624,-500.0,0.00027397,2]
[320057910,1711121447634,-500.0,0.00027397,2]
[320057911,1711121447643,-501.87774901,0.00027397,2]
[320057912,1711121447654,-500.0,0.00027397,2]
[320057913,1711121447663,-500.0,0.00027397,2]
[320057914,1711121447673,-500.0,0.00027397,2]
[320057915,1711121447682,-500.0,0.00027397,2]
[320057916,1711121447691,-500.0,0.00027397,2]
[320057917,1711121447701,-494.92872544,0.00027397,2]
[320057918,1711121447710,-500.0,0.00027397,2]
[320057919,1711121447719,-500.0,0.00027397,2]
[320057920,1711121447729,-500.0,0.00027397,2]
[320057921,1711121447738,-500.0,0.00027397,2]
[320057922,1711121447747,-500.0,0.00027397,2]
[320057923,1711121447757,-500.0,0.00027397,2]
[320057924,1711121447766,-500.0,0.00027397,2]
[320057925,1711121447775,-500.0,0.00027397,2]
[320057926,1711121447785,-500.0,0.00027397,2]
[320057927,1711121447795,-500.0,0.00027397,2]
[320057928,1711121447804,-500.0,0.00027397,2]
[320057929,1711121447813,-500.0,0.00027397,2]
[320057930,1711121447822,-500.0,0.00027397,2]
[320057931,1711121447832,-500.0,0.00027397,2]
[320057932,1711121447841,-883.1,0.00027397,2]
[320057933,1711121447850,-1802.01,0.00027397,2]
[320057934,1711121447859,-500.0,0.00027397,2]
[320057935,1711121447869,-500.0,0.00027397,2]
[320057936,1711121447879,-500.0,0.00027397,2]
[320057937,1711121447888,-1076.68,0.00027397,2]
[320057938,1711121447900,-948.82,0.00027397,2]
[320057939,1711121447909,-500.0,0.00027397,2]
[320057940,1711121447919,-500.0,0.00027397,2]
[320057941,1711121447928,-2268.05,0.00027397,2]
[320057942,1711121447937,-500.0,0.00027397,2]
[320057943,1711121447946,-500.0,0.00027397,2]
[320057944,1711121447955,-500.0,0.00027397,2]
[320057945,1711121447964,-531.91,0.00027397,2]
[320057946,1711121447974,-728.22,0.00027397,2]
[320057947,1711121447983,-500.0,0.00027397,2]
[320057948,1711121447993,-500.0,0.00027397,2]
[320057949,1711121448002,-738.92,0.00027397,2]
[320057950,1711121448011,-500.0,0.00027397,2]
[320057951,1711121448021,-1099.92,0.00027397,2]
[320057952,1711121448031,-500.0,0.00027397,2]
[320057953,1711121448040,-500.0,0.00027397,2]
[320057954,1711121448050,-3158.48,0.00027397,2]
[320057955,1711121448060,-500.0,0.00027397,2]
[320057956,1711121448069,-500.0,0.00027397,2]
[320057957,1711121448078,-500.0,0.00027397,2]
[320057958,1711121448087,-1602.13,0.00027397,2]
[320057959,1711121448097,-534.71,0.00027397,2]
[320057960,1711121448106,-1646.52,0.00027397,2]
[320057961,1711121448115,-341.11369951,0.00027397,2]
[320057962,1711121448124,-530.99909235,0.00027397,2]
[320057963,1711121448133,-500.0,0.00027397,2]
[320057964,1711121448143,-500.0,0.00027397,2]
[320057965,1711121448158,-500.0,0.00027397,2]
[320057966,1711121448167,-500.0,0.00027397,2]
[320057967,1711121448176,-944.23,0.00027397,2]
[320057968,1711121448185,-500.0,0.00027397,2]
[320057969,1711121448195,-617.18,0.00027397,2]
[320057970,1711121448204,-500.0,0.00027397,2]
[320057971,1711121448213,-500.0,0.00027397,2]
[320057972,1711121448222,-500.0,0.00027397,2]
[320057973,1711121448231,-500.0,0.00027397,2]
[320057974,1711121448240,-500.0,0.00027397,2]
[320057975,1711121448249,-500.0,0.00027397,2]
[320057976,1711121448258,-452.52073159,0.00027397,2]
[320057977,1711121448267,-500.0,0.00027397,2]
[320057978,1711121448276,-500.0,0.00027397,2]
[320057979,1711121448285,-504.78091388,0.00027397,2]
[320057980,1711121448294,-535.326623,0.00027397,2]
[320057981,1711121448303,-558.54,0.00027397,2]
[320057982,1711121448312,-560.31,0.00027397,2]
[320057983,1711121448321,-500.0,0.00027397,2]
[320057984,1711121448331,-500.0,0.00027397,2]
[320057985,1711121448340,-500.0,0.00027397,2]
[320057986,1711121448351,-500.0,0.00027397,2]
[320057987,1711121448360,-500.0,0.00027397,2]
[320057988,1711121448369,-500.0,0.00027397,2]
[320057989,1711121448379,-625.39895139,0.00027397,2]
[320057990,1711121448388,-500.0,0.00027397,2]
[320057991,1711121448404,-500.0,0.00027397,2]
[320057992,1711121448413,-151.0,0.00027397,2]
[320057993,1711121448423,-500.0,0.00027397,2]
[320057994,1711121448432,-500.0,0.00027397,2]
[320057995,1711121448442,-410.01180871,0.00027397,2]
[320057996,1711121448451,-259.15378988,0.00027397,30]
[320057997,1711121448460,-500.0,0.00027397,2]
[320057998,1711121448470,-500.0,0.00027397,2]
[320057999,1711121448480,-500.0,0.00027397,2]
[320058000,1711121448489,-500.0,0.00027397,2]
[320058001,1711121448498,-511.69,0.00027397,2]
[320058002,1711121448508,-500.0,0.00027397,2]
[320058003,1711121448517,-293.51275803,0.00027397,2]
[320058004,1711121448526,-500.0,0.00027397,2]
[320058005,1711121448535,-500.0,0.00027397,2]
[320058006,1711121448545,-500.0,0.00027397,2]
[320058007,1711121448554,-500.0,0.00027397,2]
[320058008,1711121448564,-500.0,0.00027397,2]
[320058009,1711121448574,-500.0,0.00027397,2]
[320058010,1711121448583,-500.0,0.00027397,2]
[320058011,1711121448593,-500.0,0.00027397,2]
[320058012,1711121448603,-500.0,0.00027397,2]
[320058013,1711121448613,-500.0,0.00027397,2]
[320058014,1711121448622,-500.0,0.00027397,2]
[320058015,1711121448631,-500.08174062,0.00027397,2]
[320058016,1711121448641,-2145.77,0.00027397,2]
[320058017,1711121448654,-500.0,0.00027397,2]
[320058018,1711121448663,-500.0,0.00027397,2]
[320058019,1711121448672,-7846.85,0.00027397,2]
[320058020,1711121448681,-632.09,0.00027397,2]
[320058021,1711121448691,-500.0,0.00027397,2]
[320058022,1711121448701,-776.15,0.00027397,2]
[320058023,1711121448711,-2163.07,0.00027397,2]
[320058024,1711121448721,-2034.78,0.00027397,2]
[320058025,1711121448730,-4824.75,0.00027397,2]
[320058026,1711121448739,-19260.38,0.00027397,2]
[320058027,1711121448749,-415.73089763,0.00027397,2]
[320058028,1711121448758,-500.0,0.00027397,2]
[320058029,1711121448767,-500.0,0.00027397,2]
[320058030,1711121448777,-529.08,0.00027397,2]
[320058031,1711121448786,-653.9,0.00027397,2]
[320058032,1711121448796,-2916.48,0.00027397,2]
[320058033,1711121448805,-403.39055599,0.00027397,2]
[320058034,1711121448814,-106.2204228,0.00027397,2]
[320058036,1711121448984,-393.7795772,0.00027397,2]
[320058037,1711121448995,-453.47542043,0.00027397,2]
[320058038,1711121449040,-46.52457957,0.00027397,2]
[320058039,1711121449051,-500.0,0.00027397,2]
[320058040,1711121449067,-500.0,0.00027397,2]
[320058041,1711121449077,-500.0,0.00027397,2]
[320058042,1711121449088,-1355.23,0.00027397,2]
[320058043,1711121449099,-500.0,0.00027397,2]
[320058044,1711121449110,-348.30982632,0.00027397,2]
[320058045,1711121449121,-500.0,0.00027397,2]
[320058046,1711121449131,-500.0,0.00027397,2]
[320058047,1711121449142,-3232.03856341,0.00027397,2]
[320058048,1711121449167,-317.32170118,0.00027397,2]
[320058049,1711121449207,503.66828399,0.000189,2]
[320058050,1711121511694,262.41117596,0.000189,2]
[320058051,1711121527318,262.41117596,0.000189,2]
[320058052,1711121545312,262.41117596,0.000189,2]
[320058053,1711121567322,262.41117596,0.000189,2]
[320058054,1711121587332,262.41117596,0.000189,2]
[320058055,1711121605338,262.41117596,0.000189,2]
[320058056,1711121621333,262.41117596,0.000189,2]
[320058057,1711121639337,262.41117596,0.000189,2]
[320058058,1711121657510,262.41117596,0.000189,2]
[320058059,1711121677349,262.41117596,0.000189,2]
[320058060,1711121693334,397.89794431,0.000189,2]
[320058061,1711122242500,-155.04496304,0.00022802,2]
[320058062,1711122242531,-1955.55699751,0.00022802,2]
[320058063,1711122242563,-487.92325292,0.00022803,2]
[320058064,1711122242749,-8075.4479,0.00022803,2]
[320058085,1711122572957,388.83880864,0.00020703,2]
[320058110,1711122632579,-427.148302,0.00022805,2]
[320058111,1711122632589,-200.0,0.00023294,2]
[320058112,1711122632598,-4372.851698,0.00023571,2]
[320058113,1711122632661,-43383.50027588,0.00023571,2]
[320058114,1711122632671,-300.0,0.00023574,2]
[320058115,1711122632681,-1646.00372862,0.00023581,2]
[320058116,1711122632690,-191.90356439,0.00023581,2]
[320058117,1711122632701,-204.11959336,0.00023582,2]
[320058118,1711122632711,-13624.28780614,0.00023919,2]
[320058208,1711122637798,-8075.4479,0.0002357,2]
[320058210,1711122637807,-500.0,0.00023918,2]
[320058212,1711122637817,-341.23338938,0.00023918,2]
[320058215,1711122637826,-173.42824842,0.00023918,2]
[320058217,1711122637835,-11275.71219386,0.00023919,2]
[320058219,1711122637845,-271.61915003,0.00024353,2]
[320058221,1711122637854,-615.37638664,0.00024589,2]
[320058223,1711122637863,-190.505471,0.000246,2]
[320058225,1711122637873,-281.46635872,0.00025293,2]
[320058227,1711122637882,-388.83880864,0.00025703,2]
[320058229,1711122637893,-151.79180619,0.00025705,2]
[320058231,1711122637902,-151.79180619,0.00025705,2]
[320058233,1711122637912,-1617.07893366,0.00027,2]
[320058235,1711122637922,-7752.82337168,0.00027,2]
[320058237,1711122637931,-36062.26025553,0.00027297,2]
[320058239,1711122637940,-12516.56780688,0.00027344,2]
[320058241,1711122637949,-684.24922057,0.00027394,2]
[320058243,1711122637958,-300.52228676,0.00027394,2]
[320058245,1711122637967,-232.99241824,0.00027395,2]
[320058247,1711122637977,-783.57894867,0.00027395,2]
[320058249,1711122637986,-309.75219824,0.00027396,2]
[320058250,1711122637997,-5079.88695154,0.00027396,2]
[320058252,1711122638006,-20379.73058455,0.00027397,3]
[320058254,1711122638015,-500.0,0.00027397,2]
[320058256,1711122638025,-500.0,0.00027397,2]
[320058258,1711122638034,-500.0,0.00027397,2]
[320058260,1711122638043,-500.0,0.00027397,2]
[320058262,1711122638056,-500.0,0.00027397,2]
[320058264,1711122638065,-500.0,0.00027397,2]
[320058266,1711122638074,-500.0,0.00027397,2]
[320058268,1711122638083,-500.0,0.00027397,2]
[320058270,1711122638092,-500.0,0.00027397,2]
[320058272,1711122638101,-500.0,0.00027397,2]
[320058274,1711122638110,-500.0,0.00027397,2]
[320058276,1711122638119,-500.0,0.00027397,2]
[320058277,1711122638128,-500.0,0.00027397,2]
[320058279,1711122638137,-500.0,0.00027397,2]
[320058281,1711122638147,-500.0,0.00027397,2]
[320058282,1711122638156,-500.0,0.00027397,2]
[320058283,1711122638165,-500.0,0.00027397,2]
[320058284,1711122638174,-509.0,0.00027397,2]
[320058285,1711122638183,-500.0,0.00027397,2]
[320058286,1711122638192,-370.02171051,0.00027397,2]
[320058287,1711122638202,-500.0,0.00027397,2]
[320058288,1711122638210,-500.0,0.00027397,2]
[320058289,1711122638220,-500.0,0.00027397,2]
[320058290,1711122638229,-500.0,0.00027397,2]
[320058291,1711122638239,-500.0,0.00027397,2]
[320058292,1711122638248,-500.0,0.00027397,2]
[320058293,1711122638258,-531.4265579,0.00027397,2]
[320058294,1711122638267,-500.0,0.00027397,2]
[320058295,1711122638276,-500.0,0.00027397,2]
[320058296,1711122638285,-500.0,0.00027397,2]
[320058297,1711122638294,-500.0,0.00027397,2]
[320058298,1711122638304,-500.0,0.00027397,2]
[320058299,1711122638313,-500.0,0.00027397,2]
[320058300,1711122638322,-500.0,0.00027397,2]
[320058301,1711122638330,-500.0,0.00027397,2]
[320058302,1711122638339,-500.0,0.00027397,2]
[320058303,1711122638349,-500.0,0.00027397,2]
[320058304,1711122638358,-500.0,0.00027397,2]
[320058305,1711122638367,-500.0,0.00027397,2]
[320058306,1711122638376,-500.0,0.00027397,2]
[320058307,1711122638386,-500.0,0.00027397,2]
[320058308,1711122638395,-500.0,0.00027397,2]
[320058309,1711122638404,-500.0,0.00027397,2]
[320058310,1711122638413,-500.0,0.00027397,2]
[320058311,1711122638423,-500.0,0.00027397,2]
[320058312,1711122638432,-500.0,0.00027397,2]
[320058313,1711122638441,-500.0,0.00027397,2]
[320058314,1711122638451,-500.0,0.00027397,2]
[320058315,1711122638460,-500.0,0.00027397,2]
[320058316,1711122638469,-500.0,0.00027397,2]
[320058317,1711122638478,-979.48,0.00027397,2]
[320058318,1711122638487,-1000.0,0.00027397,2]
[320058319,1711122638497,-500.0,0.00027397,2]
[320058320,1711122638506,-500.0,0.00027397,2]
[320058321,1711122638516,-500.0,0.00027397,2]
[320058322,1711122638525,-500.0,0.00027397,2]
[320058323,1711122638534,-551.41,0.00027397,2]
[320058324,1711122638544,-500.0,0.00027397,2]
[320058325,1711122638557,-500.0,0.00027397,2]
[320058326,1711122638566,-500.0,0.00027397,2]
[320058327,1711122638576,-500.0,0.00027397,2]
[320058328,1711122638585,-500.0,0.00027397,2]
[320058330,1711122638595,-500.85141942,0.00027397,2]
[320058332,1711122638604,-500.0,0.00027397,2]
[320058334,1711122638614,-500.0,0.00027397,2]
[320058342,1711122638747,-500.0,0.00027397,2]
[320058343,1711122638758,-500.0,0.00027397,2]
[320058344,1711122638769,-747.08,0.00027397,2]
[320058345,1711122638778,-261.36262508,0.00027397,2]
[320058346,1711122638788,-490.88470483,0.00027397,2]
[320058347,1711122638799,-500.0,0.00027397,2]
[320058348,1711122638809,-279.05807573,0.00027397,2]
[320058349,1711122638819,-154.87609912,0.00027397,2]
[320058350,1711122638828,-554.1,0.00027397,2]
[320058351,1711122638837,-500.0,0.00027397,2]
[320058352,1711122638847,-500.0,0.00027397,2]
[320058353,1711122638856,-500.0,0.00027397,2]
[320058354,1711122638865,-500.0,0.00027397,2]
[320058355,1711122638875,-500.0,0.00027397,2]
[320058356,1711122638885,-500.0,0.00027397,2]
[320058357,1711122638894,-500.0,0.00027397,2]
[320058358,1711122638903,-500.0,0.00027397,2]
[320058359,1711122638913,-188.02131333,0.00027397,2]
[320058360,1711122638922,-500.0,0.00027397,2]
[320058361,1711122638931,-500.0,0.00027397,2]
[320058362,1711122638941,-2109.49,0.00027397,2]
[320058363,1711122638950,-500.0,0.00027397,2]
[320058364,1711122638960,-500.0,0.00027397,2]
[320058365,1711122638969,-500.0,0.00027397,2]
[320058366,1711122638978,-151.0,0.00027397,2]
[320058367,1711122638988,-500.0,0.00027397,2]
[320058368,1711122638997,-500.0,0.00027397,30]
[320058369,1711122639006,-500.0,0.00027397,2]
[320058370,1711122639016,-500.0,0.00027397,2]
[320058371,1711122639026,-500.0,0.00027397,2]
[320058372,1711122639036,-500.0,0.00027397,2]
[320058373,1711122639046,-209.97294759,0.00027397,2]
[320058374,1711122639060,-500.0,0.00027397,2]
[320058375,1711122639071,-500.0,0.00027397,2]
[320058376,1711122639081,-500.0,0.00027397,2]
[320058377,1711122639091,-500.0,0.00027397,2]
[320058378,1711122639102,-500.0,0.00027397,2]
[320058379,1711122639112,-500.0,0.00027397,2]
[320058380,1711122639121,-500.0,0.00027397,2]
[320058381,1711122639132,-500.0,0.00027397,2]
[320058382,1711122639143,-500.0,0.00027397,2]
[320058383,1711122639153,-500.0,0.00027397,2]
[320058384,1711122639163,-500.0,0.00027397,2]
[320058385,1711122639174,-395.91513467,0.00027397,2]
[320058386,1711122639184,-1850.69,0.00027397,2]
[320058387,1711122639195,-500.0,0.00027397,2]
[320058388,1711122639206,-501.99497031,0.00027397,2]
[320058389,1711122639217,-508.22981875,0.00027397,2]
[320058390,1711122639227,-500.0,0.00027397,2]
[320058391,1711122639238,-511.2,0.00027397,2]
[320058392,1711122639248,-1411.47,0.00027397,2]
[320058393,1711122639258,-594.2940873,0.00027397,2]
[320058394,1711122639269,-500.0,0.00027397,2]
[320058395,1711122639279,-500.0,0.00027397,2]
[320058396,1711122639290,-427.49478328,0.00027397,2]
[320058397,1711122639306,-500.0,0.00027397,2]
[320058398,1711122639316,-627.12549703,0.00027397,2]
[320058399,1711122639325,-500.0,0.00027397,2]
[320058400,1711122639335,-294.47,0.00027397,2]
[320058401,1711122639345,-500.0,0.00027397,2]
[320058402,1711122639355,-500.0,0.00027397,2]
[320058403,1711122639366,-500.0,0.00027397,2]
[320058404,1711122639375,-500.0,0.00027397,2]
[320058405,1711122639384,-760.06,0.00027397,2]
[320058406,1711122639394,-500.0,0.00027397,2]
[320058407,1711122639403,-500.0,0.00027397,2]
[320058408,1711122639414,-170.84898044,0.00027397,2]
[320058409,1711122639423,-500.0,0.00027397,2]
[320058410,1711122639433,-910.63,0.00027397,2]
[320058411,1711122639442,-671.4,0.00027397,2]
[320058412,1711122639452,-500.0,0.00027397,2]
[320058413,1711122639462,-500.0,0.00027397,2]
[320058414,1711122639472,-500.0,0.00027397,2]
[320058415,1711122639481,-500.0,0.00027397,2]
[320058416,1711122639490,-500.0,0.00027397,2]
[320058417,1711122639500,-500.0,0.00027397,2]
[320058418,1711122639509,-500.0,0.00027397,2]
[320058419,1711122639518,-500.0,0.00027397,2]
[320058420,1711122639527,-155.47423784,0.00027397,2]
[320058421,1711122639537,-500.0,0.00027397,2]
[320058422,1711122639546,-500.62140895,0.00027397,2]
[320058424,1711122639563,-972.36,0.00027397,2]
[320058426,1711122639572,-500.0,0.00027397,2]
[320058427,1711122639582,-500.0,0.00027397,2]
[320058428,1711122639591,-636.38,0.00027397,2]
[320058430,1711122639601,-500.0,0.00027397,2]
[320058431,1711122639611,-500.0,0.00027397,2]
[320058432,1711122639621,-1109.69,0.00027397,2]
[320058433,1711122639630,-500.0,0.00027397,2]
[320058434,1711122639641,-500.0,0.00027397,2]
[320058435,1711122639651,-500.0,0.00027397,2]
[320058436,1711122639662,-2339.26,0.00027397,2]
[320058437,1711122639672,-500.0,0.00027397,2]
[320058438,1711122639682,-500.0,0.00027397,2]
[320058439,1711122639692,-578.63,0.00027397,2]
[320058440,1711122639703,-500.0,0.00027397,2]
[320058441,1711122639713,-500.0,0.00027397,2]
[320058442,1711122639723,-1133.61,0.00027397,2]
[320058443,1711122639734,-3256.29,0.00027397,2]
[320058444,1711122639744,-500.0,0.00027397,2]
[320058445,1711122639754,-576.93,0.00027397,2]
[320058446,1711122639763,-500.0,0.00027397,2]
[320058447,1711122639773,-500.0,0.00027397,2]
[320058448,1711122639782,-500.0,0.00027397,2]
[320058449,1711122639792,-500.0,0.00027397,2]
[320058450,1711122639806,-500.0,0.00027397,2]
[320058451,1711122639818,-236.64260937,0.00027397,2]
[320058452,1711122639827,-500.0,0.00027397,2]
[320058453,1711122639837,-500.0,0.00027397,2]
[320058454,1711122639846,-500.0,0.00027397,2]
[320058455,1711122639856,-1686.5,0.00027397,2]
[320058456,1711122639866,-500.0,0.00027397,2]
[320058457,1711122639875,-1734.63,0.00027397,2]
[320058458,1711122639884,-500.0,0.00027397,2]
[320058460,1711122639893,-500.0,0.00027397,2]
[320058462,1711122639903,-500.0,0.00027397,2]
[320058463,1711122639912,-500.0,0.00027397,2]
[320058465,1711122639921,-500.0,0.00027397,2]
[320058466,1711122639930,-500.0,0.00027397,2]
[320058467,1711122639939,-500.0,0.00027397,2]
[320058468,1711122639949,-500.0,0.00027397,2]
[320058470,1711122639957,-500.0,0.00027397,2]
[320058471,1711122639967,-500.0,0.00027397,2]
[320058473,1711122639976,-500.0,0.00027397,2]
[320058474,1711122639985,-500.0,0.00027397,2]
[320058475,1711122639995,-500.0,0.00027397,2]
[320058476,1711122640004,-500.0,0.00027397,2]
[320058478,1711122640013,-500.0,0.00027397,2]
[320058479,1711122640023,-570.85928019,0.00027397,2]
[320058481,1711122640032,-500.0,0.00027397,2]
[320058482,1711122640041,-500.0,0.00027397,2]
[320058484,1711122640053,-500.0,0.00027397,2]
[320058485,1711122640062,-843.6,0.00027397,2]
[320058486,1711122640071,-500.0,0.00027397,2]
[320058487,1711122640080,-500.0,0.00027397,2]
[320058488,1711122640088,-500.0,0.00027397,2]
[320058489,1711122640098,-500.0,0.00027397,2]
[320058490,1711122640106,-500.0,0.00027397,2]
[320058491,1711122640115,-958.32,0.00027397,2]
[320058492,1711122640124,-500.0,0.00027397,2]
[320058493,1711122640133,-500.0,0.00027397,2]
[320058494,1711122640141,-500.0,0.00027397,2]
[320058495,1711122640151,-500.0,0.00027397,2]
[320058496,1711122640161,-501.85256439,0.00027397,2]
[320058497,1711122640171,-1742.4,0.00027397,2]
[320058498,1711122640181,-500.0,0.00027397,2]
[320058499,1711122640191,-8074.13,0.00027397,2]
[320058500,1711122640201,-500.0,0.00027397,2]
[320058501,1711122640210,-671.99,0.00027397,2]
[320058502,1711122640219,-500.0,0.00027397,2]
[320058503,1711122640228,-500.0,0.00027397,2]
[320058504,1711122640238,-500.0,0.00027397,2]
[320058505,1711122640247,-500.0,0.00027397,2]
[320058506,1711122640257,-2225.73,0.00027397,2]
[320058507,1711122640266,-627.31,0.00027397,2]
[320058508,1711122640276,-600.72,0.00027397,2]
[320058509,1711122640286,-600.72,0.00027397,2]
[320058510,1711122640295,-600.72,0.00027397,2]
[320058511,1711122640310,-500.0,0.00027397,2]
[320058512,1711122640320,-600.72,0.00027397,2]
[320058513,1711122640330,-600.72,0.00027397,2]
[320058514,1711122640339,-600.72,0.00027397,2]
[320058515,1711122640349,-600.72,0.00027397,2]
[320058516,1711122640358,-600.72,0.00027397,2]
[320058517,1711122640368,-600.72,0.00027397,2]
[320058518,1711122640377,-600.72,0.00027397,2]
[320058519,1711122640386,-600.72,0.00027397,2]
[320058520,1711122640396,-4964.5,0.00027397,2]
[320058521,1711122640405,-500.0,0.00027397,2]
[320058522,1711122640414,-1807.47,0.00027397,2]
[320058523,1711122640423,-500.0,0.00027397,2]
[320058524,1711122640432,-500.0,0.00027397,2]